bitfinex-derivatives/quotes_BNBF0:USTF0_20250710
["timestamp","ask_amount","ask_price","bid_price","bid_amount"]
[1752133750813,0.98412869,672.08,671.59,1.126]
[1752133751118,0.98412869,672.11,671.59,1.126]
[1752133751318,0.98412869,672.1,671.59,1.126]
[1752133751519,1.6701463,672.06,671.59,1.126]
[1752133751720,0.98412869,672.05,671.59,1.126]
[1752133751919,0.98412869,672.04,671.59,1.126]
[1752133752117,0.98412869,672.03,671.59,1.126]
[1752133752421,2.65427499,672.02,671.59,1.126]
[1752133752620,0.98412869,672.01,671.59,1.126]
[1752133752921,0.98412869,672.0,671.59,1.126]
[1752133753114,0.98412869,671.99,671.59,1.126]
[1752133753315,0.98412869,671.98,671.59,1.126]
[1752133753620,0.25900951,672.12,671.59,1.126]
[1752133753621,0.98412869,672.01,671.59,1.126]
[1752133753821,0.98412869,672.0,671.59,1.126]
[1752133754020,0.98412869,671.99,671.59,1.126]
[1752133754218,0.98412869,672.02,671.59,1.126]
[1752133754419,0.98412869,672.01,671.59,1.126]
[1752133754619,0.98412869,672.0,671.59,1.126]
[1752133754823,0.98412869,671.99,671.59,1.126]
[1752133755025,0.98412869,672.02,671.59,1.126]
[1752133755324,0.98412869,672.01,671.59,1.126]
[1752133755524,0.98412869,672.0,671.59,1.126]
[1752133755724,1.6701463,672.03,671.59,1.126]
[1752133755725,0.98412869,671.99,671.59,1.126]
[1752133755922,0.98412869,672.02,671.59,1.126]
[1752133756125,0.98412869,672.01,671.59,1.126]
[1752133756325,0.98412869,672.0,671.59,1.126]
[1752133756524,0.98412869,671.99,671.59,1.126]
[1752133756725,0.98412869,672.02,671.59,1.126]
[1752133756925,0.98412869,672.01,671.59,1.126]
[1752133757225,0.98412869,672.0,671.59,1.126]
[1752133757522,0.98412869,671.99,671.59,1.126]
[1752133757721,0.98412869,672.02,671.59,1.126]
[1752133758022,0.98412869,672.01,671.59,1.126]
[1752133758322,0.98412869,672.0,671.59,1.126]
[1752133758625,0.98412869,671.99,671.59,1.126]
[1752133758825,0.98412869,671.98,671.59,1.126]
[1752133759024,0.98412869,672.01,671.59,1.126]
[1752133759226,0.98412869,672.0,671.59,1.126]
[1752133759423,0.98412869,671.99,671.59,1.126]
[1752133759631,0.98412869,671.98,671.59,1.126]
[1752133759825,0.98412869,672.01,671.59,1.126]
[1752133760024,0.98412869,672.0,671.59,1.126]
[1752133760224,0.98412869,671.99,671.59,1.126]
[1752133760525,0.98412869,671.98,671.59,1.126]
[1752133760727,0.98412869,672.01,671.59,1.126]
[1752133760925,0.98412869,672.0,671.59,1.126]
[1752133761125,0.98412869,671.99,671.59,1.126]
[1752133761324,0.98412869,671.98,671.59,1.126]
[1752133761528,0.98412869,671.97,671.59,1.126]
[1752133761828,0.98412869,671.96,671.59,1.126]
[1752133762028,0.98412869,671.95,671.59,1.126]
[1752133762229,0.98412869,671.98,671.59,1.126]
[1752133762523,0.98412869,671.97,671.59,1.126]
[1752133762729,0.98412869,671.96,671.59,1.126]
[1752133762930,0.98412869,671.95,671.59,1.126]
[1752133763229,0.98412869,671.99,671.59,1.126]
[1752133763529,0.98412869,671.98,671.59,1.126]
[1752133763726,0.98412869,671.97,671.59,1.126]
[1752133763928,0.98412869,671.96,671.59,1.126]
[1752133764124,0.98412869,671.95,671.59,1.126]
[1752133764327,0.98412869,671.98,671.59,1.126]
[1752133764528,0.98412869,671.97,671.59,1.126]
[1752133764726,0.98412869,671.96,671.59,1.126]
[1752133764926,0.98412869,671.95,671.59,1.126]
[1752133765126,0.98412869,671.98,671.59,1.126]
[1752133765326,0.98412869,671.97,671.59,1.126]
[1752133765525,0.98412869,671.96,671.59,1.126]
[1752133765726,0.98412869,671.95,671.59,1.126]
[1752133766028,0.98412869,671.94,671.59,1.126]
[1752133766231,0.98412869,671.98,671.59,1.126]
[1752133766530,0.98412869,671.97,671.59,1.126]
[1752133766726,0.98412869,671.96,671.59,1.126]
[1752133766930,0.98412869,671.95,671.59,1.126]
[1752133767130,0.98412869,671.94,671.59,1.126]
[1752133767330,0.98412869,671.93,671.59,1.126]
[1752133767530,0.98412869,671.92,671.59,1.126]
[1752133767729,0.98412869,671.96,671.59,1.126]
[1752133767927,1.6701463,671.97,671.59,1.126]
[1752133767928,0.98412869,671.95,671.59,1.126]
[1752133768127,0.98412869,671.94,671.59,1.126]
[1752133768325,0.98412869,671.93,671.59,1.126]
[1752133768527,0.98412869,671.96,671.59,1.126]
[1752133768727,0.98412869,671.95,671.59,1.126]
[1752133768928,0.98412869,671.94,671.59,1.126]
[1752133769128,0.98412869,671.93,671.59,1.126]
[1752133769331,0.98412869,671.96,671.59,1.126]
[1752133769529,0.98412869,671.95,671.59,1.126]
[1752133769828,0.98412869,671.94,671.59,1.126]
[1752133770028,0.98412869,671.93,671.59,1.126]
[1752133770233,0.98412869,671.96,671.59,1.126]
[1752133770434,0.98412869,671.95,671.59,1.126]
[1752133770633,1.6701463,671.99,671.59,1.126]
[1752133770634,0.98412869,671.94,671.59,1.126]
[1752133770829,0.98412869,671.95,671.59,1.126]
[1752133771035,0.98412869,671.94,671.59,1.126]
[1752133771234,0.98412869,671.95,671.59,1.126]
[1752133771435,0.98412869,671.94,671.59,1.126]
[1752133771635,0.98412869,671.95,671.59,1.126]
[1752133771934,0.98412869,671.94,671.59,1.126]
[1752133772135,0.98412869,671.95,671.59,1.126]
[1752133772336,0.98412869,671.94,671.59,1.126]
[1752133772531,0.98412869,671.95,671.59,1.126]
[1752133772735,0.98412869,671.94,671.59,1.126]
[1752133773031,0.98412869,671.95,671.59,1.126]
[1752133773238,2.65427499,671.94,671.59,1.126]
[1752133773438,0.98412869,671.93,671.59,1.126]
[1752133773637,0.98412869,671.92,671.59,1.126]
[1752133773837,0.98412869,671.93,671.59,1.126]
[1752133774036,0.98412869,671.92,671.59,1.126]
[1752133774234,1.6701463,671.88,671.59,1.126]
[1752133775236,1.6701463,671.89,671.59,1.126]
[1752133775439,1.6701463,671.88,671.59,1.126]
[1752133776336,1.6701463,671.89,671.59,1.126]
[1752133776937,2.65427499,671.89,671.59,1.126]
[1752133777142,1.6701463,671.89,671.59,1.126]
[1752133778237,1.6701463,671.9,671.59,1.126]
[1752133778637,2.65427499,671.89,671.59,1.126]
[1752133778841,1.6701463,671.89,671.59,1.126]
[1752133779239,1.6701463,671.9,671.59,1.126]
[1752133780444,1.6701463,671.88,671.59,1.126]
[1752133780648,2.65427499,671.88,671.59,1.126]
[1752133780940,1.6701463,671.88,671.59,1.126]
[1752133781241,1.6701463,671.89,671.59,1.126]
[1752133781445,1.6701463,671.94,671.59,1.126]
[1752133781743,1.6701463,671.94,671.37,1.6644418]
[1752133781744,0.98481494,671.93,671.37,1.6644418]
[1752133782146,1.6701463,671.95,671.35,1.6644418]
[1752133782341,0.98481494,671.94,671.35,1.6644418]
[1752133784944,1.6701463,671.95,671.35,1.6644418]
[1752133785141,1.6701463,671.96,671.33,1.6644418]
[1752133785347,0.98481494,671.95,671.33,1.6644418]
[1752133785541,0.98481494,671.96,671.34,1.323]
[1752133785841,0.98481494,671.95,671.34,1.323]
[1752133786044,0.98481494,671.96,671.34,1.323]
[1752133786245,0.98481494,671.95,671.34,1.323]
[1752133786446,0.98481494,671.96,671.34,1.323]
[1752133786746,0.98481494,671.95,671.34,1.323]
[1752133786941,0.98481494,671.96,671.34,1.323]
[1752133787144,0.98481494,671.95,671.34,1.323]
[1752133787343,0.98481494,671.96,671.34,1.323]
[1752133787643,0.98481494,671.95,671.34,1.323]
[1752133787847,0.98481494,671.96,671.34,1.323]
[1752133788148,0.98481494,671.95,671.34,1.323]
[1752133788347,0.98481494,671.94,671.35,1.6644418]
[1752133788548,0.98481494,671.93,671.35,1.6644418]
[1752133788750,0.98481494,671.92,671.36,1.6644418]
[1752133788943,0.98481494,671.93,671.36,1.6644418]
[1752133789149,0.98481494,671.92,671.36,1.6644418]
[1752133789446,0.98481494,671.93,671.36,1.6644418]
[1752133789644,0.98481494,671.92,671.36,1.6644418]
[1752133789841,0.98481494,671.93,671.36,1.6644418]
[1752133790043,0.98481494,671.92,671.36,1.6644418]
[1752133790348,0.98481494,671.93,671.36,1.6644418]
[1752133793349,0.98481494,671.94,671.36,1.6644418]
[1752133793549,0.98481494,671.93,671.36,1.6644418]
[1752133793746,0.98481494,671.92,671.36,1.6644418]
[1752133793950,0.98481494,671.91,671.36,1.6644418]
[1752133794252,0.98481494,671.9,671.35,1.6644418]
[1752133794447,0.98481494,671.89,671.35,1.6644418]
[1752133794650,0.98481494,671.88,671.35,1.6644418]
[1752133794851,0.98481494,671.87,671.38,1.6644418]
[1752133795047,0.98481494,671.86,671.38,1.6644418]
[1752133795249,0.98481494,671.92,671.38,1.6644418]
[1752133795448,0.98481494,671.91,671.38,1.6644418]
[1752133795646,0.98481494,671.9,671.38,1.6644418]
[1752133795950,0.98481494,671.89,671.4,1.6644418]
[1752133796150,0.98481494,671.88,671.4,1.6644418]
[1752133796347,0.98489733,671.87,671.4,1.6644418]
[1752133796548,0.98489733,671.86,671.4,1.666294]
[1752133796748,0.98489733,671.85,671.41,1.666294]
[1752133797048,0.98489733,671.9,671.41,1.666294]
[1752133797253,0.98489733,671.89,671.39,1.666294]
[1752133797551,0.98489733,671.91,671.35,1.666294]
[1752133797751,0.98489733,671.9,671.35,1.666294]
[1752133797952,0.98489733,671.94,671.35,1.666294]
[1752133798149,0.98489733,671.93,671.35,1.666294]
[1752133798352,0.98489733,671.92,671.35,1.666294]
[1752133798552,0.98489733,671.91,671.35,1.666294]
[1752133798851,1.6700591,671.95,671.35,1.666294]
[1752133798852,0.98489733,671.9,671.35,1.666294]
[1752133799152,2.65495643,671.94,671.35,1.666294]
[1752133799447,0.98489733,671.93,671.35,1.666294]
[1752133799651,0.98489733,671.92,671.35,1.666294]
[1752133799848,0.98489733,671.91,671.35,1.666294]
[1752133800148,0.98489733,671.9,671.36,1.666294]
[1752133800352,0.98489733,671.93,671.36,1.666294]
[1752133800546,0.98489733,671.92,671.36,1.666294]
[1752133800747,0.98489733,671.91,671.36,1.666294]
[1752133800948,0.98489733,671.9,671.36,1.666294]
[1752133801148,0.98489733,671.93,671.36,1.666294]
[1752133801347,0.98489733,671.92,671.36,1.666294]
[1752133801548,0.98489733,671.91,671.36,1.666294]
[1752133801747,0.98489733,671.9,671.36,1.666294]
[1752133801947,0.98489733,671.93,671.36,1.666294]
[1752133802150,0.98489733,671.92,671.36,1.666294]
[1752133802351,0.98489733,671.91,671.36,1.666294]
[1752133802651,0.98489733,671.9,671.36,1.666294]
[1752133802851,0.98489733,671.93,671.36,1.666294]
[1752133803051,0.98489733,671.92,671.36,1.666294]
[1752133803247,0.98489733,671.91,671.36,1.666294]
[1752133803447,0.98489733,671.93,671.36,1.666294]
[1752133803752,0.98489733,671.92,671.36,1.666294]
[1752133803947,0.98489733,671.91,671.36,1.6666981]
[1752133804149,0.98489733,671.93,671.36,1.6666981]
[1752133804349,0.98469132,671.92,671.36,1.6666981]
[1752133804549,0.98469132,671.91,671.36,1.6666981]
[1752133804849,1.6704638,671.94,671.36,1.6666981]
[1752133804850,0.98469132,671.93,671.36,1.6666981]
[1752133805149,0.98469132,671.92,671.36,1.6666981]
[1752133805349,0.98469132,671.91,671.36,1.6666981]
[1752133805550,0.98469132,671.93,671.36,1.6666981]
[1752133805853,0.98469132,671.92,671.36,1.6666981]
[1752133806051,0.98469132,671.91,671.36,1.6666981]
[1752133806352,0.98469132,671.93,671.36,1.6666981]
[1752133806549,0.98469132,671.92,671.36,1.6666981]
[1752133806750,0.98469132,671.93,671.36,1.6666981]
[1752133807054,0.98469132,671.92,671.37,1.6666981]
[1752133807252,2.65515512,671.91,671.4,1.6666981]
[1752133807451,0.98469132,671.9,671.4,1.6666981]
[1752133807651,0.98469132,671.89,671.41,1.6666981]
[1752133807855,0.98469132,671.88,671.41,1.6666981]
[1752133808056,0.98469132,671.87,671.42,1.6666981]
[1752133808256,0.98469132,671.89,671.42,1.6666981]
[1752133808457,0.98469132,671.88,671.42,1.6666981]
[1752133808656,0.98469132,671.89,671.42,1.6666981]
[1752133808857,0.98469132,671.88,671.42,1.6666981]
[1752133809057,0.98469132,671.89,671.42,1.6666981]
[1752133809254,0.98469132,671.88,671.41,1.6666981]
[1752133809452,0.98469132,671.87,671.41,1.6666981]
[1752133809655,0.98469132,671.88,671.41,1.6666981]
[1752133809852,0.98469132,671.87,671.41,1.6666981]
[1752133810152,0.98469132,671.88,671.41,1.6666981]
[1752133810352,0.98469132,671.87,671.41,1.6666981]
[1752133810654,0.98469132,671.88,671.41,1.6666981]
[1752133810958,0.98469132,671.87,671.41,1.6666981]
[1752133811155,0.98469132,671.88,671.41,1.6666981]
[1752133811457,1.6704638,671.9,671.39,1.6666981]
[1752133811657,0.98469132,671.89,671.39,1.6666981]
[1752133814757,1.6704638,671.95,671.32,1.6666981]
[1752133814956,0.98469132,672.02,670.97,0.25906832]
[1752133814957,1.6704638,671.92,671.3,1.6666981]
[1752133815658,1.6704638,671.92,671.31,1.339]
[1752133816162,1.6704638,671.93,671.31,1.339]
[1752133816662,1.6704638,671.92,671.31,1.339]
[1752133822864,1.6704638,671.9,671.31,3.0056981]
[1752133823063,1.6704638,671.89,671.34,1.6666981]
[1752133824268,1.6704638,671.88,671.34,1.6666981]
[1752133825472,0.25900951,672.12,671.31,1.339]
[1752133825473,1.6704638,671.91,671.31,1.339]
[1752133825873,0.98429164,671.9,671.31,1.339]
[1752133826070,0.98429164,671.89,671.31,1.339]
[1752133826271,0.98429164,671.88,671.31,1.339]
[1752133826571,1.6704638,671.87,671.31,1.339]
[1752133827769,1.6704638,671.88,671.31,1.339]
[1752133828272,1.6704638,671.87,671.31,1.339]
[1752133832369,1.6704638,671.86,671.31,1.339]
[1752133833974,1.6704638,671.85,671.31,1.339]
[1752133834570,1.6704638,671.83,671.31,1.339]
[1752133835572,1.6704638,671.84,671.31,1.339]
[1752133836072,1.6704638,671.79,671.31,1.339]
[1752133837473,1.6704638,671.8,671.31,1.339]
[1752133841979,1.6704638,671.81,671.31,1.339]
[1752133842782,1.6704638,671.8,671.31,1.339]
[1752133843279,1.6704638,671.81,671.31,1.339]
[1752133843680,1.6704638,671.8,671.31,1.339]
[1752133847080,1.6704638,671.86,671.31,1.339]
[1752133847480,1.6704638,671.87,671.31,1.339]
[1752133848284,1.6704638,671.86,671.31,1.339]
[1752133851485,1.6704638,671.87,671.31,1.339]
[1752133851985,1.6704638,671.86,671.31,1.339]
[1752133852183,1.6704638,671.87,671.31,1.339]
[1752133853683,1.6704638,671.81,671.31,1.339]
[1752133854881,1.6704638,671.85,671.31,1.339]
[1752133855082,0.98367144,671.84,671.31,1.339]
[1752133855286,0.98367144,671.83,671.31,1.339]
[1752133855586,2.65413524,671.84,671.31,1.339]
[1752133855785,0.98367144,671.83,671.31,1.339]
[1752133857390,1.6704638,671.84,671.31,1.339]
[1752133858290,1.6704638,671.85,671.31,1.339]
[1752133863598,0.9832337,671.87,671.31,1.339]
[1752133863798,0.9832337,671.89,671.31,1.339]
[1752133863999,0.9832337,671.88,671.31,1.339]
[1752133864299,0.9832337,671.87,671.31,3.0056981]
[1752133864599,1.6704638,671.9,671.31,3.0056981]
[1752133866300,1.6704638,671.89,671.31,3.0056981]
[1752133867302,1.6704638,671.87,671.35,1.6666981]
[1752133867502,1.6704638,671.86,671.35,1.6666981]
[1752133867902,1.6704638,671.86,671.36,1.6666981]
[1752133868197,2.2278097,671.99,671.31,1.339]
[1752133868198,1.6704638,671.87,671.37,1.6666981]
[1752133869104,1.6704638,671.86,671.37,1.6666981]
[1752133869400,1.6704638,671.88,671.34,1.6666981]
[1752133869898,1.6704638,671.89,671.34,1.6666981]
[1752133870499,1.6704638,671.88,671.34,1.6666981]
[1752133872004,1.6704638,671.89,671.34,1.6666981]
[1752133877110,1.6704638,671.89,671.35,1.542]
[1752133879310,1.6704638,671.87,671.37,1.6666981]
[1752133881617,1.6704638,671.87,671.35,1.542]
[1752133881618,1.6704638,671.86,671.38,1.6666981]
[1752133884321,1.6704638,671.86,671.39,1.6666981]
[1752133885622,1.6704638,671.86,671.38,1.6666981]
[1752133886124,1.6704638,671.85,671.4,1.6666981]
[1752133886820,1.6704638,671.86,671.38,1.6666981]
[1752133889127,1.6704638,671.88,671.36,1.6666981]
[1752133889824,1.6704638,671.88,671.35,3.2086981]
[1752133890226,1.6704638,671.89,671.36,1.6666981]
[1752133890628,0.98338248,671.9,671.36,1.6666981]
[1752133890930,1.6704638,671.91,671.36,1.6666981]
[1752133892426,1.6704638,671.92,671.34,1.6666981]
[1752133893131,1.6704638,671.93,671.33,1.6666981]
[1752133894833,1.6704638,671.93,671.34,1.776]
[1752133896632,1.6704638,671.93,671.34,3.4426981]
[1752133897836,1.67061072,671.93,671.34,3.44244533]
[1752133898637,1.67061072,671.92,671.34,3.44244533]
[1752133899036,1.67061072,671.92,671.35,1.66644533]
[1752133900536,1.67061072,671.91,671.36,1.66644533]
[1752133901537,1.67061072,671.91,671.35,1.66644533]
[1752133902242,1.67061072,671.9,671.38,1.66644533]
[1752133902437,1.67061072,671.92,671.35,1.66644533]
[1752133903342,1.67061072,671.91,671.35,1.66644533]
[1752133904244,1.67061072,671.92,671.35,1.66644533]
[1752133904441,1.67061072,671.91,671.35,1.66644533]
[1752133904640,1.67061072,671.92,671.34,3.44244533]
[1752133905645,1.67061072,671.92,671.35,1.66644533]
[1752133906246,2.65386851,671.92,671.35,1.66644533]
[1752133906447,1.67061072,671.91,671.35,1.66644533]
[1752133907049,1.67061072,671.92,671.34,3.44244533]
[1752133908547,1.67061072,671.91,671.35,1.66644533]
[1752133908947,0.98342495,672.03,671.34,1.776]
[1752133909149,1.67122213,671.91,671.35,1.66702129]
[1752133911548,1.67122213,671.9,671.36,1.66702129]
[1752133912050,1.67122213,671.91,671.34,3.44302129]
[1752133912247,2.65480815,671.9,671.36,1.66702129]
[1752133912450,1.67122213,671.9,671.36,1.66702129]
[1752133912850,1.67122213,671.95,671.34,1.776]
[1752133914350,0.98381578,671.94,671.34,1.776]
[1752133914548,2.65503791,671.94,671.34,1.776]
[1752133914751,1.67122213,671.97,671.34,1.776]
[1752133914948,0.98381578,671.96,671.34,1.776]
[1752133915247,0.98381578,671.95,671.34,1.776]
[1752133915551,0.98381578,671.94,671.34,1.776]
[1752133915745,0.98381578,671.93,671.34,1.776]
[1752133915950,0.98381578,671.96,671.34,1.776]
[1752133916149,0.98381578,671.95,671.34,1.776]
[1752133916349,0.98381578,671.96,671.34,1.776]
[1752133916549,0.98381578,671.95,671.34,1.776]
[1752133916749,0.98381578,671.96,671.34,1.776]
[1752133916949,0.98381578,671.95,671.34,1.776]
[1752133917148,0.98381578,671.96,671.34,1.776]
[1752133917351,0.98381578,671.95,671.34,1.776]
[1752133917552,1.6720642,671.97,671.34,1.776]
[1752133917553,0.98381578,671.94,671.34,1.776]
[1752133917754,0.98381578,671.96,671.34,1.776]
[1752133918050,0.98381578,671.95,671.34,1.776]
[1752133918249,0.98381578,671.94,671.34,1.776]
[1752133918450,0.98381578,671.96,671.34,1.776]
[1752133918653,0.98381578,671.95,671.34,1.776]
[1752133918852,0.98381578,671.94,671.34,1.776]
[1752133919054,0.98381578,671.96,671.34,1.776]
[1752133919250,0.98381578,671.95,671.34,1.776]
[1752133919457,0.98381578,671.94,671.34,1.776]
[1752133919752,0.98381578,671.96,671.34,1.776]
[1752133919955,0.98381578,671.95,671.34,1.776]
[1752133920155,0.98381578,671.94,671.34,1.776]
[1752133920351,0.98381578,671.96,671.34,1.776]
[1752133920555,0.98381578,671.95,671.34,1.776]
[1752133920753,0.98381578,671.94,671.34,1.776]
[1752133920951,1.6720642,671.97,671.34,1.776]
[1752133920952,0.98381578,671.96,671.34,1.776]
[1752133921156,0.98381578,671.95,671.34,1.776]
[1752133921453,0.98381578,671.94,671.34,1.776]
[1752133921652,0.98381578,671.93,671.34,1.776]
[1752133921955,0.98381578,671.95,671.34,1.776]
[1752133922155,0.98480856,671.94,671.34,1.776]
[1752133922352,0.98480856,671.93,671.34,1.776]
[1752133922556,2.65687276,671.92,671.34,1.776]
[1752133922855,0.98480856,671.91,671.39,1.66772584]
[1752133923152,0.98480856,671.9,671.39,1.66772584]
[1752133923355,0.98480856,671.89,671.39,1.66772584]
[1752133923553,0.98480856,671.91,671.39,1.66772584]
[1752133923853,0.98480856,671.9,671.37,1.66772584]
[1752133924055,0.98480856,671.89,671.37,1.66772584]
[1752133924355,0.98480856,671.88,671.37,1.66772584]
[1752133924553,0.98480856,671.92,671.37,1.66772584]
[1752133924753,0.98480856,671.91,671.37,1.66772584]
[1752133925054,0.98480856,671.9,671.37,1.66772584]
[1752133925256,0.98480856,671.89,671.37,1.66772584]
[1752133925556,0.98480856,671.88,671.37,1.66772584]
[1752133925853,0.98480856,671.92,671.37,1.66772584]
[1752133926156,0.98480856,671.91,671.37,1.66772584]
[1752133926457,0.98480856,671.9,671.41,1.66772584]
[1752133926656,0.98480856,671.89,671.41,1.66772584]
[1752133926853,0.98480856,671.88,671.41,1.66772584]
[1752133927153,0.98480856,671.87,671.41,1.66772584]
[1752133927357,0.98480856,671.86,671.41,1.66772584]
[1752133927557,0.98480856,671.9,671.41,1.66772584]
[1752133927757,0.98480856,671.89,671.41,1.66772584]
[1752133927957,0.98480856,671.88,671.41,1.66772584]
[1752133928154,0.98480856,671.87,671.41,1.66772584]
[1752133928458,0.98480856,671.86,671.41,1.66772584]
[1752133928656,2.65687276,671.9,671.41,1.66772584]
[1752133928853,0.98480856,671.89,671.41,1.66772584]
[1752133929053,0.98480856,671.88,671.41,1.66772584]
[1752133929255,0.98480856,671.87,671.41,1.66772584]
[1752133929455,0.98480856,671.86,671.41,1.66772584]
[1752133929755,0.98480856,671.89,671.41,1.66772584]
[1752133930058,0.98480856,671.88,671.41,1.66772584]
[1752133930252,0.98480856,671.87,671.42,1.555]
[1752133930454,0.98480856,671.86,671.42,1.555]
[1752133930657,0.98480856,671.9,671.42,1.555]
[1752133930859,0.98480856,671.89,671.42,1.555]
[1752133931057,0.98480856,671.88,671.42,1.555]
[1752133931360,0.98480856,671.87,671.42,1.555]
[1752133931558,0.98480856,671.86,671.42,1.555]
[1752133931757,0.98480856,671.9,671.42,1.555]
[1752133931960,0.98480856,671.89,671.42,1.555]
[1752133932159,0.98480856,671.88,671.42,1.555]
[1752133932460,0.98480856,671.87,671.42,1.555]
[1752133932661,0.98480856,671.86,671.42,1.555]
[1752133932961,0.98480856,671.9,671.42,1.555]
[1752133933159,0.98480856,671.89,671.42,1.555]
[1752133933364,0.98480856,671.88,671.42,1.555]
[1752133933559,0.98480856,671.87,671.42,1.555]
[1752133933762,0.98480856,671.86,671.42,1.555]
[1752133933962,0.98480856,671.9,671.42,1.555]
[1752133934162,0.98480856,671.89,671.42,1.555]
[1752133934358,0.98480856,671.88,671.42,1.555]
[1752133934559,0.98480856,671.87,671.42,1.555]
[1752133934763,0.98480856,671.86,671.42,1.555]
[1752133935063,0.98480856,671.89,671.42,1.555]
[1752133935263,0.98480856,671.88,671.42,1.555]
[1752133935462,0.98480856,671.87,671.42,1.555]
[1752133935760,0.98480856,671.86,671.42,1.555]
[1752133935959,0.98480856,671.9,671.42,1.555]
[1752133936164,0.98480856,671.89,671.42,1.555]
[1752133936361,0.98480856,671.88,671.42,1.555]
[1752133936561,0.98480856,671.87,671.42,1.555]
[1752133936765,1.6720642,671.91,671.42,1.555]
[1752133936766,0.98480856,671.86,671.42,1.555]
[1752133936964,0.98480856,671.9,671.42,1.555]
[1752133937163,0.98480856,671.89,671.42,1.555]
[1752133937365,0.98480856,671.88,671.42,1.555]
[1752133937666,0.98480856,671.87,671.42,1.555]
[1752133937962,0.98480856,671.86,671.42,1.555]
[1752133938268,0.98480856,671.9,671.42,1.555]
[1752133938565,0.98480856,671.89,671.42,1.555]
[1752133938866,0.98480856,671.88,671.42,1.555]
[1752133939065,0.98480856,671.87,671.42,1.555]
[1752133939266,0.98480856,671.86,671.42,1.555]
[1752133939465,0.98480856,671.9,671.42,1.555]
[1752133939765,0.98480856,671.89,671.42,1.555]
[1752133940065,0.98480856,671.88,671.42,1.555]
[1752133940265,0.98480856,671.92,671.42,1.555]
[1752133940465,0.98480856,671.91,671.42,1.555]
[1752133940761,0.98480856,671.9,671.42,1.555]
[1752133940965,0.98480856,671.89,671.42,1.555]
[1752133941265,0.98480856,671.88,671.42,1.555]
[1752133941465,0.98480856,671.91,671.42,1.555]
[1752133941662,1.6720642,671.92,671.42,1.555]
[1752133941663,0.98480856,671.9,671.42,1.555]
[1752133941862,0.98480856,671.89,671.42,1.555]
[1752133942164,0.98480856,671.88,671.42,1.555]
[1752133942466,0.98480856,671.87,671.42,1.555]
[1752133942766,0.98480856,671.91,671.42,1.555]
[1752133942964,0.98498784,671.9,671.42,1.555]
[1752133943168,0.98498784,671.89,671.42,1.555]
[1752133943370,0.98498784,671.88,671.42,1.555]
[1752133943664,0.98498784,671.87,671.42,1.555]
[1752133943867,0.98498784,671.86,671.42,1.555]
[1752133944068,0.98498784,671.9,671.42,1.555]
[1752133944265,0.98498784,671.89,671.42,1.555]
[1752133944468,0.98498784,671.88,671.42,1.555]
[1752133944669,0.98498784,671.87,671.42,1.555]
[1752133944870,0.98498784,671.86,671.42,1.555]
[1752133945167,0.98498784,671.9,671.42,1.555]
[1752133945372,0.98498784,671.89,671.42,1.555]
[1752133945572,0.98498784,671.88,671.42,1.555]
[1752133945872,0.98498784,671.87,671.42,1.555]
[1752133946072,0.98498784,671.86,671.42,1.555]
[1752133946273,0.98498784,671.9,671.42,1.555]
[1752133946474,0.98498784,671.89,671.42,1.555]
[1752133946673,0.98498784,671.88,671.42,1.555]
[1752133946872,0.98498784,671.87,671.42,1.555]
[1752133947073,0.98498784,671.86,671.42,1.555]
[1752133947272,0.98498784,671.9,671.42,1.555]
[1752133947573,0.98498784,671.89,671.42,1.555]
[1752133947768,0.98498784,671.88,671.42,1.555]
[1752133947974,0.98498784,671.92,671.42,1.555]
[1752133948173,0.98498784,671.91,671.42,1.555]
[1752133948376,0.98498784,671.9,671.42,1.555]
[1752133948575,0.98498784,671.89,671.42,1.555]
[1752133948771,0.98498784,671.88,671.42,1.555]
[1752133948976,0.98498784,671.91,671.42,1.555]
[1752133949272,0.98498784,671.9,671.42,1.555]
[1752133949473,0.98498784,671.89,671.42,1.555]
[1752133949676,0.98498784,671.88,671.42,1.555]
[1752133949975,0.98498784,671.87,671.42,1.555]
[1752133950173,0.98498784,671.86,671.42,1.555]